[Event "Titled Tuesday Blitz May 10 Late 2022"]
[White "Maksimovic, Bojan"]
[Black "Manukian, Artak"]
[WhiteFideId "14408120"]
[BlackFideId "13301373"]
[WhiteElo "2448"]
[BlackElo "2403"]
[Result "1-0"]
[Round "01"]
[TimeControl "180+1"]
[Date "2022.05.11"]
[WhiteClock "0:00:37"]
[BlackClock "0:00:02"]

1. c4 {[%clk 0:02:57]}  g6 {[%clk 0:02:58]} 2. d4 {[%clk 0:02:57]}  Bg7 {[%clk 0:02:59]} 3. e4 {[%clk 0:02:57]}  d6 {[%clk 0:03:00]} 4. Nc3 {[%clk 0:02:57]}  Nf6 {[%clk 0:03:00]} 5. Nf3 {[%clk 0:02:57]}  O-O {[%clk 0:03:00]} 6. Be2 {[%clk 0:02:58]}  e5 {[%clk 0:03:00]} 7. d5 {[%clk 0:02:58]}  Na6 {[%clk 0:02:56]} 8. Be3 {[%clk 0:02:57]}  Ng4 {[%clk 0:02:54]} 9. Bg5 {[%clk 0:02:57]}  f6 {[%clk 0:02:55]} 10. Bh4 {[%clk 0:02:57]}  h5 {[%clk 0:02:55]} 11. Nd2 {[%clk 0:02:57]}  Nh6 {[%clk 0:02:53]} 12. f3 {[%clk 0:02:57]}  g5 {[%clk 0:02:49]} 13. Bf2 {[%clk 0:02:57]}  h4 {[%clk 0:02:49]} 14. g3 {[%clk 0:02:50]}  h3 {[%clk 0:02:44]} 15. g4 {[%clk 0:02:46]}  Kf7 {[%clk 0:02:36]} 16. Nf1 {[%clk 0:02:45]}  Rh8 {[%clk 0:02:36]} 17. Ng3 {[%clk 0:02:46]}  Ng8 {[%clk 0:02:29]} 18. O-O {[%clk 0:02:45]}  Ne7 {[%clk 0:02:29]} 19. Re1 {[%clk 0:02:45]}  Ng6 {[%clk 0:02:29]} 20. Bf1 {[%clk 0:02:45]}  Nf4 {[%clk 0:02:29]} 21. a3 {[%clk 0:02:45]}  Bf8 {[%clk 0:02:14]} 22. b4 {[%clk 0:02:44]}  b6 {[%clk 0:02:04]} 23. Qd2 {[%clk 0:02:43]}  Nb8 {[%clk 0:02:01]} 24. c5 {[%clk 0:02:32]}  Nd7 {[%clk 0:01:51]} 25. c6 {[%clk 0:02:22]}  Nb8 {[%clk 0:01:45]} 26. a4 {[%clk 0:02:19]}  a5 {[%clk 0:01:28]} 27. b5 {[%clk 0:02:15]}  Rh7 {[%clk 0:01:28]} 28. Be3 {[%clk 0:02:09]}  Be7 {[%clk 0:01:13]} 29. Reb1 {[%clk 0:02:02]}  Ng6 {[%clk 0:01:03]} 30. Kf2 {[%clk 0:02:00]}  Kg8 {[%clk 0:00:53]} 31. Ke1 {[%clk 0:02:00]}  Nh4 {[%clk 0:00:46]} 32. Qf2 {[%clk 0:01:48]}  Qf8 {[%clk 0:00:36]} 33. Kd1 {[%clk 0:01:47]}  Kh8 {[%clk 0:00:26]} 34. Kc2 {[%clk 0:01:47]}  Ng6 {[%clk 0:00:22]} 35. Kb3 {[%clk 0:01:42]}  Nf4 {[%clk 0:00:22]} 36. Rb2 {[%clk 0:01:31]}  Qh6 {[%clk 0:00:13]} 37. Rd2 {[%clk 0:01:30]}  Kg8 {[%clk 0:00:07]} 38. Raa2 {[%clk 0:01:29]}  Kh8 {[%clk 0:00:07]} 39. Kb2 {[%clk 0:01:29]}  Kg8 {[%clk 0:00:07]} 40. Ka1 {[%clk 0:01:30]}  Kh8 {[%clk 0:00:08]} 41. Bxf4 {[%clk 0:01:21]}  gxf4 {[%clk 0:00:07]} 42. Nh5 {[%clk 0:01:20]}  Qg5 {[%clk 0:00:06]} 43. Bxh3 {[%clk 0:01:18]}  Rxh5 {[%clk 0:00:06]} 44. Bf1 {[%clk 0:00:40]}  Rh4 {[%clk 0:00:06]} 45. h3 {[%clk 0:00:40]}  Qh6 {[%clk 0:00:06]} 46. Qe1 {[%clk 0:00:40]}  Rxh3 {[%clk 0:00:05]} 47. Bxh3 {[%clk 0:00:40]}  Kg7 {[%clk 0:00:04]} 48. Rh2 {[%clk 0:00:39]}  Qh4 {[%clk 0:00:03]} 49. Qxh4 {[%clk 0:00:38]}  f5 {[%clk 0:00:03]} 50. g5 {[%clk 0:00:38]}  fxe4 {[%clk 0:00:02]} 51. Bxc8 {[%clk 0:00:37]} 1-0


[Site "https://www.chess.com"]

[Event "Titled Tuesday Blitz May 10 Late 2022"]
[White "Martinez Alcantara, Jose Eduardo"]
[Black "Krstulovic, Alex"]
[WhiteFideId "3805662"]
[BlackFideId "760056"]
[WhiteElo "2690"]
[BlackElo "2193"]
[Result "1-0"]
[Round "01"]
[TimeControl "180+1"]
[Date "2022.05.10"]
[WhiteClock "0:01:13"]
[BlackClock "0:00:07"]

1. e4 {[%clk 0:03:00]}  c5 {[%clk 0:02:59]} 2. Nf3 {[%clk 0:03:01]}  e6 {[%clk 0:02:59]} 3. c3 {[%clk 0:03:01]}  Nf6 {[%clk 0:02:57]} 4. Bd3 {[%clk 0:03:00]}  Nc6 {[%clk 0:02:50]} 5. O-O {[%clk 0:02:59]}  d5 {[%clk 0:02:50]} 6. e5 {[%clk 0:02:59]}  Nd7 {[%clk 0:02:50]} 7. Bb5 {[%clk 0:02:59]}  Qc7 {[%clk 0:02:45]} 8. d4 {[%clk 0:02:58]}  a6 {[%clk 0:02:43]} 9. Bd3 {[%clk 0:02:53]}  b5 {[%clk 0:02:41]} 10. a3 {[%clk 0:02:52]}  Be7 {[%clk 0:02:35]} 11. Be3 {[%clk 0:02:50]}  Rb8 {[%clk 0:02:34]} 12. Nbd2 {[%clk 0:02:48]}  c4 {[%clk 0:02:33]} 13. Bc2 {[%clk 0:02:35]}  a5 {[%clk 0:02:32]} 14. Ng5 {[%clk 0:02:35]}  h6 {[%clk 0:02:29]} 15. Qh5 {[%clk 0:02:27]}  Nd8 {[%clk 0:02:14]} 16. Nxf7 {[%clk 0:02:06]}  Nxf7 {[%clk 0:02:10]} 17. Bg6 {[%clk 0:02:06]}  Rf8 {[%clk 0:01:59]} 18. f4 {[%clk 0:02:07]}  Nb6 {[%clk 0:01:47]} 19. g4 {[%clk 0:02:06]}  Na4 {[%clk 0:01:31]} 20. f5 {[%clk 0:01:58]}  Nxb2 {[%clk 0:01:23]} 21. f6 {[%clk 0:01:58]}  gxf6 {[%clk 0:01:19]} 22. Bxh6 {[%clk 0:01:59]}  f5 {[%clk 0:01:10]} 23. gxf5 {[%clk 0:01:48]}  Rh8 {[%clk 0:00:44]} 24. Bxf7+ {[%clk 0:01:47]}  Kd8 {[%clk 0:00:44]} 25. Qg6 {[%clk 0:01:28]}  b4 {[%clk 0:00:30]} 26. axb4 {[%clk 0:01:20]}  axb4 {[%clk 0:00:26]} 27. f6 {[%clk 0:01:15]}  Bf8 {[%clk 0:00:14]} 28. Bg7 {[%clk 0:01:16]}  bxc3 {[%clk 0:00:13]} 29. Nf3 {[%clk 0:01:16]}  Nd3 {[%clk 0:00:07]} 30. Bxh8 {[%clk 0:01:13]} 1-0


[Site "https://www.chess.com"]

[Event "Titled Tuesday Blitz May 10 Late 2022"]
[White "Mekhane, Adam"]
[Black "Daggupati, Balaji"]
[WhiteFideId "36050601"]
[BlackFideId "2090759"]
[WhiteElo "2002"]
[BlackElo "2636"]
[Result "0-1"]
[Round "01"]
[TimeControl "180+1"]
[Date "2022.05.11"]
[WhiteClock "0:00:17"]
[BlackClock "0:01:11"]

1. e4 {[%clk 0:02:59]}  c5 {[%clk 0:02:58]} 2. Nf3 {[%clk 0:02:57]}  e6 {[%clk 0:02:59]} 3. d4 {[%clk 0:02:57]}  cxd4 {[%clk 0:02:59]} 4. Nxd4 {[%clk 0:02:57]}  Nf6 {[%clk 0:02:59]} 5. Nc3 {[%clk 0:02:57]}  Nc6 {[%clk 0:03:00]} 6. Nxc6 {[%clk 0:02:36]}  bxc6 {[%clk 0:03:00]} 7. e5 {[%clk 0:02:37]}  Nd5 {[%clk 0:03:00]} 8. Ne4 {[%clk 0:02:38]}  Qc7 {[%clk 0:03:01]} 9. f4 {[%clk 0:02:37]}  Qb6 {[%clk 0:03:01]} 10. c4 {[%clk 0:02:38]}  Ne3 {[%clk 0:03:02]} 11. Qd3 {[%clk 0:02:19]}  Nf5 {[%clk 0:03:02]} 12. b3 {[%clk 0:02:08]}  Be7 {[%clk 0:02:49]} 13. Be2 {[%clk 0:01:53]}  Bb7 {[%clk 0:02:49]} 14. Bb2 {[%clk 0:01:42]}  Ne3 {[%clk 0:02:28]} 15. Bf3 {[%clk 0:01:36]}  O-O {[%clk 0:02:06]} 16. Ke2 {[%clk 0:01:32]}  Nf5 {[%clk 0:02:05]} 17. g3 {[%clk 0:01:24]}  Rfd8 {[%clk 0:02:00]} 18. Rhd1 {[%clk 0:01:23]}  a5 {[%clk 0:01:54]} 19. g4 {[%clk 0:01:14]}  Nh4 {[%clk 0:01:53]} 20. Bh1 {[%clk 0:01:13]}  a4 {[%clk 0:01:50]} 21. Bd4 {[%clk 0:01:12]}  c5 {[%clk 0:01:49]} 22. Be3 {[%clk 0:01:09]}  Bc6 {[%clk 0:01:34]} 23. Nd6 {[%clk 0:01:00]}  Bxh1 {[%clk 0:01:28]} 24. Rxh1 {[%clk 0:00:59]}  Qc6 {[%clk 0:01:28]} 25. Rhf1 {[%clk 0:00:53]}  Qg2+ {[%clk 0:01:27]} 26. Rf2 {[%clk 0:00:46]}  Qxg4+ {[%clk 0:01:27]} 27. Kd2 {[%clk 0:00:45]}  Bxd6 {[%clk 0:01:25]} 28. exd6 {[%clk 0:00:43]}  axb3 {[%clk 0:01:26]} 29. Qxb3 {[%clk 0:00:39]}  Rdb8 {[%clk 0:01:25]} 30. Qc3 {[%clk 0:00:33]}  Nf3+ {[%clk 0:01:25]} 31. Kc2 {[%clk 0:00:24]}  Qg6+ {[%clk 0:01:23]} 32. Kc1 {[%clk 0:00:21]}  Qg1+ {[%clk 0:01:10]} 33. Kc2 {[%clk 0:00:20]}  Rxa2+ {[%clk 0:01:11]} 34. Rxa2 {[%clk 0:00:17]}  Qb1# {[%clk 0:01:11]} 0-1


[Site "https://www.chess.com"]

[Event "Titled Tuesday Blitz May 10 Late 2022"]
[White "Melikyan, Gnel"]
[Black "Gaisinsky, Adam"]
[WhiteFideId "54109990"]
[BlackFideId "2620561"]
[WhiteElo "1772"]
[BlackElo "1965"]
[Result "1-0"]
[Round "01"]
[TimeControl "180+1"]
[Date "2022.05.11"]
[WhiteClock "0:00:34"]
[BlackClock "0:00:01"]

1. e4 {[%clk 0:02:53]}  e5 {[%clk 0:02:57]} 2. Nf3 {[%clk 0:02:53]}  Nc6 {[%clk 0:02:54]} 3. d4 {[%clk 0:02:53]}  exd4 {[%clk 0:02:54]} 4. Nxd4 {[%clk 0:02:53]}  Nf6 {[%clk 0:02:55]} 5. Nxc6 {[%clk 0:02:50]}  bxc6 {[%clk 0:02:56]} 6. e5 {[%clk 0:02:49]}  Qe7 {[%clk 0:02:56]} 7. Qe2 {[%clk 0:02:50]}  Nd5 {[%clk 0:02:55]} 8. c4 {[%clk 0:02:50]}  Ba6 {[%clk 0:02:55]} 9. b3 {[%clk 0:02:50]}  g6 {[%clk 0:02:55]} 10. g3 {[%clk 0:02:50]}  Bg7 {[%clk 0:02:55]} 11. Bb2 {[%clk 0:02:50]}  O-O {[%clk 0:02:54]} 12. Bg2 {[%clk 0:02:51]}  Rae8 {[%clk 0:02:52]} 13. O-O {[%clk 0:02:51]}  Bxe5 {[%clk 0:02:49]} 14. Qxe5 {[%clk 0:02:51]}  Qxe5 {[%clk 0:02:50]} 15. Bxe5 {[%clk 0:02:52]}  Rxe5 {[%clk 0:02:50]} 16. cxd5 {[%clk 0:02:53]}  Bxf1 {[%clk 0:02:50]} 17. Kxf1 {[%clk 0:02:54]}  Rfe8 {[%clk 0:02:49]} 18. Nc3 {[%clk 0:02:52]}  cxd5 {[%clk 0:02:44]} 19. Nxd5 {[%clk 0:02:44]}  Kg7 {[%clk 0:02:27]} 20. Nxc7 {[%clk 0:02:35]}  Rc8 {[%clk 0:02:20]} 21. Nd5 {[%clk 0:02:34]}  Rc2 {[%clk 0:02:16]} 22. Ne3 {[%clk 0:02:34]}  Rc7 {[%clk 0:02:06]} 23. Nc4 {[%clk 0:02:20]}  Rec5 {[%clk 0:02:01]} 24. Rd1 {[%clk 0:02:15]}  Kf6 {[%clk 0:01:56]} 25. Bd5 {[%clk 0:02:06]}  a5 {[%clk 0:01:42]} 26. Rd4 {[%clk 0:01:57]}  g5 {[%clk 0:01:24]} 27. Kg2 {[%clk 0:01:42]}  a4 {[%clk 0:01:16]} 28. Ne3 {[%clk 0:01:22]}  axb3 {[%clk 0:01:09]} 29. Bxb3 {[%clk 0:01:16]}  Ra7 {[%clk 0:00:50]} 30. Rd6+ {[%clk 0:01:10]}  Kg7 {[%clk 0:00:31]} 31. g4 {[%clk 0:00:54]}  Rac7 {[%clk 0:00:08]} 32. Nf5+ {[%clk 0:00:50]}  Kf8 {[%clk 0:00:08]} 33. Rh6 {[%clk 0:00:44]}  Re5 {[%clk 0:00:03]} 34. Rxh7 {[%clk 0:00:43]}  Kg8 {[%clk 0:00:03]} 35. Rxf7 {[%clk 0:00:34]}  Rc4 {[%clk 0:00:01]} 1-0


[Site "https://www.chess.com"]

[Event "Titled Tuesday Blitz May 10 Late 2022"]
[White "Moral Garcia, Serafin"]
[Black "Yuan, Qingyu"]
[WhiteFideId "2201925"]
[BlackFideId "8609772"]
[WhiteElo "2228"]
[BlackElo "2359"]
[Result "0-1"]
[Round "01"]
[TimeControl "180+1"]
[Date "2022.05.10"]
[WhiteClock "0:01:50"]
[BlackClock "0:01:26"]

1. e4 {[%clk 0:03:00]}  c6 {[%clk 0:02:33]} 2. d4 {[%clk 0:02:52]}  d5 {[%clk 0:02:33]} 3. exd5 {[%clk 0:02:53]}  cxd5 {[%clk 0:02:33]} 4. c4 {[%clk 0:02:52]}  Nf6 {[%clk 0:02:33]} 5. Nc3 {[%clk 0:02:53]}  Nc6 {[%clk 0:02:32]} 6. Bg5 {[%clk 0:02:53]}  dxc4 {[%clk 0:02:32]} 7. Bxc4 {[%clk 0:02:52]}  e6 {[%clk 0:02:31]} 8. Nf3 {[%clk 0:02:52]}  Be7 {[%clk 0:02:32]} 9. O-O {[%clk 0:02:52]}  O-O {[%clk 0:02:31]} 10. Re1 {[%clk 0:02:51]}  a6 {[%clk 0:02:29]} 11. Bb3 {[%clk 0:02:51]}  b5 {[%clk 0:02:19]} 12. Qd3 {[%clk 0:02:45]}  Bb7 {[%clk 0:02:16]} 13. a3 {[%clk 0:02:44]}  Rc8 {[%clk 0:02:10]} 14. Bc2 {[%clk 0:02:39]}  g6 {[%clk 0:02:10]} 15. Bh6 {[%clk 0:02:39]}  Re8 {[%clk 0:02:10]} 16. Bb3 {[%clk 0:02:34]}  Na5 {[%clk 0:02:02]} 17. Ba2 {[%clk 0:02:33]}  Nc4 {[%clk 0:02:02]} 18. Bxc4 {[%clk 0:02:22]}  Rxc4 {[%clk 0:01:59]} 19. Rad1 {[%clk 0:02:16]}  Bxf3 {[%clk 0:01:50]} 20. gxf3 {[%clk 0:02:16]}  Nd5 {[%clk 0:01:47]} 21. Ne4 {[%clk 0:02:14]}  Qc7 {[%clk 0:01:41]} 22. Rc1 {[%clk 0:02:11]}  Rc8 {[%clk 0:01:40]} 23. b3 {[%clk 0:01:49]}  Rxc1 {[%clk 0:01:33]} 24. Rxc1 {[%clk 0:01:50]}  Qxc1+ {[%clk 0:01:26]} 0-1


[Site "https://www.chess.com"]

[Event "Titled Tuesday Blitz May 10 Late 2022"]
[White "Mortazavi, Ali"]
[Black "Boruchovsky, Avital"]
[WhiteFideId "401323"]
[BlackFideId "2800055"]
[WhiteElo "2339"]
[BlackElo "2469"]
[Result "1-0"]
[Round "01"]
[TimeControl "180+1"]
[Date "2022.05.11"]
[WhiteClock "0:00:22"]
[BlackClock "0:00:15"]

1. Nf3 {[%clk 0:02:58]}  d5 {[%clk 0:02:59]} 2. g3 {[%clk 0:02:59]}  Nd7 {[%clk 0:02:59]} 3. Bg2 {[%clk 0:03:00]}  e5 {[%clk 0:02:58]} 4. d3 {[%clk 0:03:00]}  Bd6 {[%clk 0:02:58]} 5. O-O {[%clk 0:03:01]}  Ngf6 {[%clk 0:02:57]} 6. Nc3 {[%clk 0:03:01]}  c6 {[%clk 0:02:57]} 7. e4 {[%clk 0:03:01]}  O-O {[%clk 0:02:55]} 8. Nh4 {[%clk 0:02:52]}  Nb6 {[%clk 0:02:49]} 9. a4 {[%clk 0:02:47]}  Bg4 {[%clk 0:02:42]} 10. Qe1 {[%clk 0:02:42]}  a5 {[%clk 0:02:34]} 11. exd5 {[%clk 0:02:25]}  cxd5 {[%clk 0:02:33]} 12. Nb5 {[%clk 0:02:25]}  Bb8 {[%clk 0:02:33]} 13. h3 {[%clk 0:02:24]}  Be6 {[%clk 0:02:30]} 14. c3 {[%clk 0:02:09]}  Qd7 {[%clk 0:02:29]} 15. Kh2 {[%clk 0:02:05]}  Nxa4 {[%clk 0:02:27]} 16. Na3 {[%clk 0:01:43]}  Nc5 {[%clk 0:02:25]} 17. Qd1 {[%clk 0:01:37]}  h6 {[%clk 0:02:05]} 18. Re1 {[%clk 0:01:37]}  Rd8 {[%clk 0:02:01]} 19. Be3 {[%clk 0:01:31]}  d4 {[%clk 0:02:01]} 20. cxd4 {[%clk 0:01:32]}  exd4 {[%clk 0:02:01]} 21. Bd2 {[%clk 0:01:32]}  Nb3 {[%clk 0:02:00]} 22. Rb1 {[%clk 0:01:32]}  Ra6 {[%clk 0:01:36]} 23. Nc4 {[%clk 0:01:19]}  Nxd2 {[%clk 0:01:20]} 24. Qxd2 {[%clk 0:01:18]}  Bd5 {[%clk 0:01:03]} 25. Nxa5 {[%clk 0:01:10]}  b5 {[%clk 0:00:51]} 26. b4 {[%clk 0:01:09]}  Bxg2 {[%clk 0:00:50]} 27. Nxg2 {[%clk 0:01:05]}  Nd5 {[%clk 0:00:50]} 28. Nb3 {[%clk 0:00:54]}  Nc3 {[%clk 0:00:47]} 29. Nc5 {[%clk 0:00:50]}  Nxb1 {[%clk 0:00:47]} 30. Rxb1 {[%clk 0:00:51]}  Qd6 {[%clk 0:00:43]} 31. Nxa6 {[%clk 0:00:52]}  Qxa6 {[%clk 0:00:44]} 32. Qe2 {[%clk 0:00:47]}  Qe6 {[%clk 0:00:42]} 33. Qf3 {[%clk 0:00:44]}  Bd6 {[%clk 0:00:41]} 34. Re1 {[%clk 0:00:38]}  Qb3 {[%clk 0:00:39]} 35. Nh4 {[%clk 0:00:34]}  Bxb4 {[%clk 0:00:37]} 36. Re5 {[%clk 0:00:34]}  Bd6 {[%clk 0:00:33]} 37. Re4 {[%clk 0:00:34]}  b4 {[%clk 0:00:30]} 38. Nf5 {[%clk 0:00:32]}  Bf8 {[%clk 0:00:30]} 39. Nxh6+ {[%clk 0:00:24]}  gxh6 {[%clk 0:00:29]} 40. Rg4+ {[%clk 0:00:23]}  Bg7 {[%clk 0:00:14]} 41. Qf6 {[%clk 0:00:23]}  Kf8 {[%clk 0:00:15]} 42. Qxd8# {[%clk 0:00:22]} 1-0


[Site "https://www.chess.com"]

[Event "Titled Tuesday Blitz May 10 Late 2022"]
[White "Muradov, Soltan"]
[Black "Khripachenko, Alexander"]
[WhiteFideId "14002108"]
[BlackFideId "54184975"]
[WhiteElo "1854"]
[BlackElo "2138"]
[Result "0-1"]
[Round "01"]
[TimeControl "180+1"]
[Date "2022.05.11"]
[WhiteClock "0:00:37"]
[BlackClock "0:02:19"]

1. d4 {[%clk 0:03:00]}  Nf6 {[%clk 0:02:59]} 2. Nf3 {[%clk 0:03:01]}  g6 {[%clk 0:02:59]} 3. Bg5 {[%clk 0:02:57]}  Bg7 {[%clk 0:02:57]} 4. Nbd2 {[%clk 0:02:57]}  O-O {[%clk 0:02:57]} 5. e3 {[%clk 0:02:58]}  c5 {[%clk 0:02:56]} 6. c3 {[%clk 0:02:58]}  d6 {[%clk 0:02:54]} 7. Bd3 {[%clk 0:02:50]}  b6 {[%clk 0:02:53]} 8. Qe2 {[%clk 0:02:47]}  Bb7 {[%clk 0:02:53]} 9. O-O-O {[%clk 0:02:44]}  Nc6 {[%clk 0:02:51]} 10. Kb1 {[%clk 0:02:43]}  Rc8 {[%clk 0:02:51]} 11. h4 {[%clk 0:02:14]}  h6 {[%clk 0:02:36]} 12. Bxf6 {[%clk 0:02:14]}  exf6 {[%clk 0:02:37]} 13. g4 {[%clk 0:02:12]}  cxd4 {[%clk 0:02:36]} 14. exd4 {[%clk 0:02:08]}  Re8 {[%clk 0:02:36]} 15. Qf1 {[%clk 0:02:07]}  Ne7 {[%clk 0:02:36]} 16. Rg1 {[%clk 0:02:03]}  Nd5 {[%clk 0:02:36]} 17. Bb5 {[%clk 0:01:47]}  Re7 {[%clk 0:02:34]} 18. Ba6 {[%clk 0:01:36]}  Qc7 {[%clk 0:02:34]} 19. Bxb7 {[%clk 0:01:34]}  Qxb7 {[%clk 0:02:35]} 20. Ne1 {[%clk 0:01:16]}  b5 {[%clk 0:02:27]} 21. Nd3 {[%clk 0:01:12]}  a5 {[%clk 0:02:27]} 22. Qg2 {[%clk 0:01:03]}  Re2 {[%clk 0:02:27]} 23. Rge1 {[%clk 0:00:54]}  Rxd2 {[%clk 0:02:22]} 24. Rxd2 {[%clk 0:00:52]}  Nxc3+ {[%clk 0:02:22]} 25. bxc3 {[%clk 0:00:39]}  Qxg2 {[%clk 0:02:23]} 26. Kb2 {[%clk 0:00:37]}  Qxg4 {[%clk 0:02:20]} 27. Re3 {[%clk 0:00:37]}  b4 {[%clk 0:02:20]} 28. Rc2 {[%clk 0:00:37]}  f5 {[%clk 0:02:19]} 0-1


[Site "https://www.chess.com"]

[Event "Titled Tuesday Blitz May 10 Late 2022"]
[White "Nagy, Gabor"]
[Black "Nilsen, Tobias Lang"]
[WhiteFideId "737119"]
[BlackFideId "1521624"]
[WhiteElo "2569"]
[BlackElo "2014"]
[Result "1-0"]
[Round "01"]
[TimeControl "180+1"]
[Date "2022.05.11"]
[WhiteClock "0:01:02"]
[BlackClock "0:00:24"]

1. e4 {[%clk 0:03:00]}  c5 {[%clk 0:02:55]} 2. Nf3 {[%clk 0:02:59]}  e6 {[%clk 0:02:55]} 3. d4 {[%clk 0:02:59]}  cxd4 {[%clk 0:02:56]} 4. Nxd4 {[%clk 0:03:00]}  Nc6 {[%clk 0:02:57]} 5. Nc3 {[%clk 0:03:00]}  Qc7 {[%clk 0:02:56]} 6. Be3 {[%clk 0:03:00]}  a6 {[%clk 0:02:56]} 7. Qf3 {[%clk 0:03:00]}  d6 {[%clk 0:02:54]} 8. O-O-O {[%clk 0:03:00]}  Bd7 {[%clk 0:02:53]} 9. g4 {[%clk 0:03:00]}  b5 {[%clk 0:02:53]} 10. Kb1 {[%clk 0:02:59]}  Rc8 {[%clk 0:02:53]} 11. Nxc6 {[%clk 0:02:57]}  Bxc6 {[%clk 0:02:52]} 12. Bd3 {[%clk 0:02:58]}  Nf6 {[%clk 0:02:51]} 13. Qg2 {[%clk 0:02:51]}  b4 {[%clk 0:02:50]} 14. Ne2 {[%clk 0:02:50]}  Nd7 {[%clk 0:02:48]} 15. Nd4 {[%clk 0:02:47]}  Nc5 {[%clk 0:02:47]} 16. f4 {[%clk 0:02:38]}  Be7 {[%clk 0:02:44]} 17. g5 {[%clk 0:02:34]}  a5 {[%clk 0:02:41]} 18. f5 {[%clk 0:02:30]}  b3 {[%clk 0:02:35]} 19. axb3 {[%clk 0:02:28]}  a4 {[%clk 0:02:34]} 20. Nxc6 {[%clk 0:02:28]}  Qxc6 {[%clk 0:02:33]} 21. Bxc5 {[%clk 0:02:27]}  dxc5 {[%clk 0:02:28]} 22. g6 {[%clk 0:02:21]}  fxg6 {[%clk 0:02:15]} 23. fxe6 {[%clk 0:02:18]}  O-O {[%clk 0:02:14]} 24. Bc4 {[%clk 0:02:15]}  axb3 {[%clk 0:02:11]} 25. cxb3 {[%clk 0:02:16]}  Kh8 {[%clk 0:02:08]} 26. Rd7 {[%clk 0:02:14]}  Bf6 {[%clk 0:02:07]} 27. Rhd1 {[%clk 0:02:12]}  Bd4 {[%clk 0:02:06]} 28. R7xd4 {[%clk 0:02:04]}  cxd4 {[%clk 0:02:07]} 29. Rxd4 {[%clk 0:02:05]}  Qb6 {[%clk 0:02:03]} 30. Qd2 {[%clk 0:02:03]}  Rxc4 {[%clk 0:01:45]} 31. bxc4 {[%clk 0:02:01]}  Qxe6 {[%clk 0:01:46]} 32. b3 {[%clk 0:01:59]}  h6 {[%clk 0:01:43]} 33. Kb2 {[%clk 0:01:57]}  Rf1 {[%clk 0:01:40]} 34. c5 {[%clk 0:01:50]}  Qf6 {[%clk 0:01:39]} 35. Qc3 {[%clk 0:01:44]}  Rf2+ {[%clk 0:01:37]} 36. Ka3 {[%clk 0:01:43]}  Qa6+ {[%clk 0:01:36]} 37. Ra4 {[%clk 0:01:44]}  Qc6 {[%clk 0:01:28]} 38. Ra7 {[%clk 0:01:41]}  Rf6 {[%clk 0:01:25]} 39. h4 {[%clk 0:01:37]}  Kh7 {[%clk 0:01:23]} 40. Qd4 {[%clk 0:01:34]}  h5 {[%clk 0:01:08]} 41. Qd5 {[%clk 0:01:32]}  Qb5 {[%clk 0:00:59]} 42. Ra8 {[%clk 0:01:27]}  Ra6+ {[%clk 0:00:46]} 43. Rxa6 {[%clk 0:01:26]}  Qxa6+ {[%clk 0:00:47]} 44. Kb4 {[%clk 0:01:27]}  Kh6 {[%clk 0:00:48]} 45. c6 {[%clk 0:01:26]}  Qb6+ {[%clk 0:00:47]} 46. Kc4 {[%clk 0:01:27]}  Qc7 {[%clk 0:00:44]} 47. b4 {[%clk 0:01:25]}  Qc8 {[%clk 0:00:43]} 48. b5 {[%clk 0:01:24]}  Qc7 {[%clk 0:00:39]} 49. Kb4 {[%clk 0:01:21]}  Qe7+ {[%clk 0:00:39]} 50. Kb3 {[%clk 0:01:18]}  Qc7 {[%clk 0:00:37]} 51. e5 {[%clk 0:01:15]}  Qb6 {[%clk 0:00:34]} 52. Kc4 {[%clk 0:01:13]}  Qe3 {[%clk 0:00:32]} 53. e6 {[%clk 0:01:13]}  Qc1+ {[%clk 0:00:32]} 54. Kd4 {[%clk 0:01:11]}  Qd2+ {[%clk 0:00:31]} 55. Kc5 {[%clk 0:01:11]}  Qc3+ {[%clk 0:00:30]} 56. Kd6 {[%clk 0:01:11]}  Qb4+ {[%clk 0:00:30]} 57. Kd7 {[%clk 0:01:11]}  Qf8 {[%clk 0:00:27]} 58. e7 {[%clk 0:01:10]}  Qg8 {[%clk 0:00:20]} 59. Qxg8 {[%clk 0:01:09]}  g5 {[%clk 0:00:20]} 60. e8=Q {[%clk 0:01:09]}  gxh4 {[%clk 0:00:20]} 61. c7 {[%clk 0:01:09]}  Kg5 {[%clk 0:00:20]} 62. c8=Q {[%clk 0:01:09]}  Kg4 {[%clk 0:00:21]} 63. Qxg7+ {[%clk 0:01:09]}  Kh3 {[%clk 0:00:22]} 64. Kd6+ {[%clk 0:01:07]}  Kh2 {[%clk 0:00:23]} 65. b6 {[%clk 0:01:07]}  h3 {[%clk 0:00:23]} 66. b7 {[%clk 0:01:07]}  h4 {[%clk 0:00:23]} 67. b8=Q {[%clk 0:01:08]}  Kh1 {[%clk 0:00:24]} 68. Qbb2 {[%clk 0:01:03]}  h2 {[%clk 0:00:24]} 69. Qa8# {[%clk 0:01:02]} 1-0


[Site "https://www.chess.com"]